Workbook

Sheet 部门收支总表
A1: 2018年部门预算收支总表
A2: 填报单位：临湘市民政局 | F2: 单位：元
A3: 收入 | C3: 支出(经济分类） | E3: 支出（功能科目）
A4: 一般预算拨款（补助） | B4: 15393577.55 | C4: 基本支出 | D4: 7786829.51 | E4: 201、一般公共服务支出 | F4: 0.00
A5: 经费拨款 | B5: 15393577.55 | C5: 301、工资福利支出 | D5: 7087169.51 | E5: 202、外交支出 | F5: 0.00
A6: 纳入预算管理的非税收入拨款 | B6: 0.00 | C6: 302、商品和服务支出 | D6: 657000.00 | E6: 203、国防支出 | F6: 0.00
A7: 纳入专户管理的非税收入拨款 | B7: 0.00 | C7: 303、对个人和家庭的补助 | D7: 42660.00 | E7: 204、公共安全支出 | F7: 0.00
A8: 政府性基金拨款 | B8: 0.00 | C8: 项目支出 | D8: 8860000.00 | E8: 205、教育支出 | F8: 0.00
A9: 事业单位经营收入 | B9: 0.00 | C9: 302、商品和服务支出 | D9: 2598000.00 | E9: 206、科学技术支出 | F9: 0.00
A10: 上级补助收入 | B10: 0.00 | C10: 303、对个人和家庭的补助 | D10: 6262000.00 | E10: 207、文化体育与传媒支出 | F10: 0.00
A11: 附属单位上缴收入 | B11: 0.00 | C11: 307、债务利息及费用支出 | D11: 0.00 | E11: 208、社会保障和就业支出 | F11: 16238958.71
A12: 其他收入 | B12: 1253251.96 | C12: 309、资本性支出（基本建设） | D12: 0.00 | E12: 209、社保基金支出 | F12: 0.00
A13: 上年结转 | B13: 0.00 | C13: 310、资本性支出 | D13: 0.00 | E13: 210、医疗卫生与计划生育支出 | F13: 0.00
C14: 311、对企业补助（基本建设） | D14: 0.00 | E14: 211、节能环保支出 | F14: 0.00
C15: 312、对企业补助 | D15: 0.00 | E15: 212、城乡社区支出 | F15: 0.00
C16: 313、对社会保障金补助 | D16: 0.00 | E16: 213、农林水支出 | F16: 0.00
C17: 399、其他支出 | D17: 0.00 | E17: 214、交通运输支出 | F17: 0.00
E18: 215、资源勘探信息等支出 | F18: 0.00
E19: 216、商业服务业等支出 | F19: 0.00
E20: 217、金融支出 | F20: 0.00
E21: 219、援助其他地区支出 | F21: 0.00
E22: 220、国土海洋气象等支出 | F22: 0.00
E23: 221、住房保障支出 | F23: 407870.80
E24: 222、粮油物资储备支出 | F24: 0.00
E25: 223、国有资本经营预算支出 | F25: 0.00
E26: 227、预备费 | F26: 0.00
E27: 229、其他支出 | F27: 0.00
E28: 230、转移性支出 | F28: 0.00
E29: 231、债务还本支出 | F29: 0.00
E30: 232、债务付息支出 | F30: 0.00
E31: 233、债务发行费用支出 | F31: 0.00
A33: 本年收入合计 | B33: 16,646,829.51 | C33: 本年支出合计 | D33: 16,646,829.51 | E33: 本年支出合计 | F33: 16,646,829.51

Sheet 部门收入总表
A2: 部门收入总体情况表
A3: 单位临湘市民政局 | K3: 单位：万元
A4: 单位 | C4: 总计 | D4: 一般预算拨款 | F4: 纳入专户管理的非税收入拨款 | G4: 政府性基金拨款 | H4: 上级补助收入 | I4: 附属单位上缴收入 | J4: 其他收入 | K4: 上年结转
A5: 单位代码 | B5: 单位名称 | D5: 经费拨款 | E5: 纳入预算管理的非税收入拨款
B6: 合计 | C6: =SUM(C7:C10) -> 16646829.51 | D6: 15393577.55 | E6: 0.00 | F6: 0.00 | G6: 0.00 | H6: 0.00 | I6: 0.00 | J6: 1253251.96 | K6: 0.00
A7: 503005 | B7: 社保股 | C7: 620800.16 | D7: 394718.00 | E7: 0.00 | F7: 0.00 | G7: 0.00 | H7: 0.00 | I7: 0.00 | J7: 226082.16 | K7: 0.00
A8: 503002 | B8: 社保股 | C8: 432086.08 | D8: 284470.60 | E8: 0.00 | F8: 0.00 | G8: 0.00 | H8: 0.00 | I8: 0.00 | J8: 147615.48 | K8: 0.00
A9: 503004 | B9: 社保股 | C9: 339527.70 | D9: 338527.70 | E9: 0.00 | F9: 0.00 | G9: 0.00 | H9: 0.00 | I9: 0.00 | J9: 1000.00 | K9: 0.00
A10: 503001 | B10: 社保股 | C10: 15254415.57 | D10: 14375861.25 | E10: 0.00 | F10: 0.00 | G10: 0.00 | H10: 0.00 | I10: 0.00 | J10: 878554.32 | K10: 0.00

Sheet 部门支出总表
A2: 部门支出总体情况表
A3: 单位:临湘市民政局 | K3: 单位：万元
A4: 功能科目 | E4: 总计 | F4: 一般预算拨款 | H4: 纳入专户管理的非税收入拨款 | I4: 政府性基金拨款 | J4: 上级补助收入 | K4: 其他收入
A5: 类 | B5: 款 | C5: 项 | D5: 科目名称 | F5: 经费拨款 | G5: 纳入预算管理的非税收入拨款
D6: 合计 | E6: =SUM(E7:E27) -> 16646829.51 | F6: 15393577.55 | G6: 0.00 | H6: 0.00 | I6: 0.00 | J6: 0.00 | K6: 1253251.96
A7: 208 | B7: 05 | C7: 06 | D7: 机关事业单位职业年金缴费支出 | E7: 45121.92 | F7: 0.00 | G7: 0.00 | H7: 0.00 | I7: 0.00 | J7: 0.00 | K7: 45121.92
A8: 208 | B8: 05 | C8: 05 | D8: 机关事业单位基本养老保险缴费支出 | E8: 834019.80 | F8: 721215.00 | G8: 0.00 | H8: 0.00 | I8: 0.00 | J8: 0.00 | K8: 112804.80
A9: 208 | B9: 05 | C9: 06 | D9: 机关事业单位职业年金缴费支出 | E9: 7586.88 | F9: 0.00 | G9: 0.00 | H9: 0.00 | I9: 0.00 | J9: 0.00 | K9: 7586.88
A10: 208 | B10: 25 | C10: 01 | D10: 其他城市生活救助 | E10: 400000.00 | F10: 400000.00 | G10: 0.00 | H10: 0.00 | I10: 0.00 | J10: 0.00 | K10: 0.00
A11: 208 | B11: 02 | C11: 01 | D11: 行政运行（民政管理事务） | E11: 7501665.93 | F11: 6826160.25 | G11: 0.00 | H11: 0.00 | I11: 0.00 | J11: 0.00 | K11: 675505.68
A12: 208 | B12: 05 | C12: 05 | D12: 机关事业单位基本养老保险缴费支出 | E12: 82838.40 | F12: 53736.00 | G12: 0.00 | H12: 0.00 | I12: 0.00 | J12: 0.00 | K12: 29102.40
A13: 208 | B13: 21 | C13: 02 | D13: 农村五保供养支出 | E13: 1000000.00 | F13: 1000000.00 | G13: 0.00 | H13: 0.00 | I13: 0.00 | J13: 0.00 | K13: 0.00
A14: 208 | B14: 25 | C14: 01 | D14: 其他城市生活救助 | E14: 493185.44 | F14: 319487.60 | G14: 0.00 | H14: 0.00 | I14: 0.00 | J14: 0.00 | K14: 173697.84
A15: 208 | B15: 05 | C15: 05 | D15: 机关事业单位基本养老保险缴费支出 | E15: 46300.40 | F15: 46300.40 | G15: 0.00 | H15: 0.00 | I15: 0.00 | J15: 0.00 | K15: 0.00
A16: 208 | B16: 10 | C16: 02 | D16: 老年福利 | E16: 200000.00 | F16: 200000.00 | G16: 0.00 | H16: 0.00 | I16: 0.00 | J16: 0.00 | K16: 0.00
A17: 208 | B17: 05 | C17: 06 | D17: 机关事业单位职业年金缴费支出 | E17: 11640.96 | F17: 0.00 | G17: 0.00 | H17: 0.00 | I17: 0.00 | J17: 0.00 | K17: 11640.96
A18: 208 | B18: 05 | C18: 05 | D18: 机关事业单位基本养老保险缴费支出 | E18: 56518.40 | F18: 37551.20 | G18: 0.00 | H18: 0.00 | I18: 0.00 | J18: 0.00 | K18: 18967.20
A19: 208 | B19: 09 | C19: 01 | D19: 退役士兵安置 | E19: 1240000.00 | F19: 1240000.00 | G19: 0.00 | H19: 0.00 | I19: 0.00 | J19: 0.00 | K19: 0.00
A20: 208 | B20: 19 | C20: 02 | D20: 农村最低生活保障金支出 | E20: 2000000.00 | F20: 2000000.00 | G20: 0.00 | H20: 0.00 | I20: 0.00 | J20: 0.00 | K20: 0.00
A21: 208 | B21: 08 | C21: 05 | D21: 义务兵优待 | E21: 1700000.00 | F21: 1700000.00 | G21: 0.00 | H21: 0.00 | I21: 0.00 | J21: 0.00 | K21: 0.00
A22: 208 | B22: 10 | C22: 05 | D22: 社会福利事业单位 | E22: 345373.44 | F22: 231898.92 | G22: 0.00 | H22: 0.00 | I22: 0.00 | J22: 0.00 | K22: 113474.52
A23: 208 | B23: 10 | C23: 05 | D23: 社会福利事业单位 | E23: 274707.14 | F23: 273707.14 | G23: 0.00 | H23: 0.00 | I23: 0.00 | J23: 0.00 | K23: 1000.00
A24: 221 | B24: 02 | C24: 01 | D24: 住房公积金 | E24: 22607.36 | F24: 15020.48 | G24: 0.00 | H24: 0.00 | I24: 0.00 | J24: 0.00 | K24: 7586.88
A25: 221 | B25: 02 | C25: 01 | D25: 住房公积金 | E25: 33135.36 | F25: 21494.40 | G25: 0.00 | H25: 0.00 | I25: 0.00 | J25: 0.00 | K25: 11640.96
A26: 221 | B26: 02 | C26: 01 | D26: 住房公积金 | E26: 333607.92 | F26: 288486.00 | G26: 0.00 | H26: 0.00 | I26: 0.00 | J26: 0.00 | K26: 45121.92
A27: 221 | B27: 02 | C27: 01 | D27: 住房公积金 | E27: 18520.16 | F27: 18520.16 | G27: 0.00 | H27: 0.00 | I27: 0.00 | J27: 0.00 | K27: 0.00

Sheet 部门支出总表(分类)
A2: 部门支出总表分类
A3: 单位临湘市民政局 | Q3: 单位：万元
A4: 功能科目 | E4: 总计 | F4: 基本支出 | J4: 项目支出
A5: 科目编码 | D5: 科目名称 | F5: 合计 | G5: 工资福利支出 | H5: 一般商品和服务支出 | I5: 对个人和家庭的补助 | J5: 合计 | K5: 商品和服务支出 | L5: 对个人和家庭的补助支出 | M5: 基本建设 | N5: 其他资本性支出 | O5: 对企事业单位的补贴 | P5: 其他支出 | Q5: 债务利息及费用支出
A6: 类 | B6: 款 | C6: 项
D7: 合计 | E7: =SUM(E8:E28) -> 16646829.51 | F7: 7786829.51 | G7: 7087169.51 | H7: 657000.00 | I7: 42660.00 | J7: 8860000.00 | K7: 2598000.00 | L7: 6262000.00 | M7: 0.00 | N7: 0.00 | O7: 0.00 | P7: 0.00 | Q7: 0.00
A8: 208 | B8: 08 | C8: 05 | D8: 义务兵优待 | E8: 1700000.00 | F8: 0.00 | G8: 0.00 | H8: 0.00 | I8: 0.00 | J8: 1700000.00 | K8: 0.00 | L8: 1700000.00 | M8: 0.00 | N8: 0.00 | O8: 0.00 | P8: 0.00 | Q8: 0.00
A9: 208 | B9: 05 | C9: 06 | D9: 机关事业单位职业年金缴费支出 | E9: 45121.92 | F9: 45121.92 | G9: 45121.92 | H9: 0.00 | I9: 0.00 | J9: 0.00 | K9: 0.00 | L9: 0.00 | M9: 0.00 | N9: 0.00 | O9: 0.00 | P9: 0.00 | Q9: 0.00
A10: 208 | B10: 10 | C10: 05 | D10: 社会福利事业单位 | E10: 274707.14 | F10: 274707.14 | G10: 247707.14 | H10: 27000.00 | I10: 0.00 | J10: 0.00 | K10: 0.00 | L10: 0.00 | M10: 0.00 | N10: 0.00 | O10: 0.00 | P10: 0.00 | Q10: 0.00
A11: 208 | B11: 25 | C11: 01 | D11: 其他城市生活救助 | E11: 493185.44 | F11: 493185.44 | G11: 443185.44 | H11: 50000.00 | I11: 0.00 | J11: 0.00 | K11: 0.00 | L11: 0.00 | M11: 0.00 | N11: 0.00 | O11: 0.00 | P11: 0.00 | Q11: 0.00
A12: 208 | B12: 05 | C12: 05 | D12: 机关事业单位基本养老保险缴费支出 | E12: 834019.80 | F12: 834019.80 | G12: 834019.80 | H12: 0.00 | I12: 0.00 | J12: 0.00 | K12: 0.00 | L12: 0.00 | M12: 0.00 | N12: 0.00 | O12: 0.00 | P12: 0.00 | Q12: 0.00
A13: 208 | B13: 09 | C13: 01 | D13: 退役士兵安置 | E13: 1240000.00 | F13: 0.00 | G13: 0.00 | H13: 0.00 | I13: 0.00 | J13: 1240000.00 | K13: 0.00 | L13: 1240000.00 | M13: 0.00 | N13: 0.00 | O13: 0.00 | P13: 0.00 | Q13: 0.00
A14: 208 | B14: 10 | C14: 05 | D14: 社会福利事业单位 | E14: 345373.44 | F14: 345373.44 | G14: 302373.44 | H14: 43000.00 | I14: 0.00 | J14: 0.00 | K14: 0.00 | L14: 0.00 | M14: 0.00 | N14: 0.00 | O14: 0.00 | P14: 0.00 | Q14: 0.00
A15: 208 | B15: 21 | C15: 02 | D15: 农村五保供养支出 | E15: 1000000.00 | F15: 0.00 | G15: 0.00 | H15: 0.00 | I15: 0.00 | J15: 1000000.00 | K15: 0.00 | L15: 1000000.00 | M15: 0.00 | N15: 0.00 | O15: 0.00 | P15: 0.00 | Q15: 0.00
A16: 208 | B16: 10 | C16: 02 | D16: 老年福利 | E16: 200000.00 | F16: 0.00 | G16: 0.00 | H16: 0.00 | I16: 0.00 | J16: 200000.00 | K16: 0.00 | L16: 200000.00 | M16: 0.00 | N16: 0.00 | O16: 0.00 | P16: 0.00 | Q16: 0.00
A17: 208 | B17: 02 | C17: 01 | D17: 行政运行（民政管理事务） | E17: 7501665.93 | F17: 5181665.93 | G17: 4602005.93 | H17: 537000.00 | I17: 42660.00 | J17: 2320000.00 | K17: 1098000.00 | L17: 1222000.00 | M17: 0.00 | N17: 0.00 | O17: 0.00 | P17: 0.00 | Q17: 0.00
A18: 208 | B18: 05 | C18: 05 | D18: 机关事业单位基本养老保险缴费支出 | E18: 56518.40 | F18: 56518.40 | G18: 56518.40 | H18: 0.00 | I18: 0.00 | J18: 0.00 | K18: 0.00 | L18: 0.00 | M18: 0.00 | N18: 0.00 | O18: 0.00 | P18: 0.00 | Q18: 0.00
A19: 208 | B19: 19 | C19: 02 | D19: 农村最低生活保障金支出 | E19: 2000000.00 | F19: 0.00 | G19: 0.00 | H19: 0.00 | I19: 0.00 | J19: 2000000.00 | K19: 1500000.00 | L19: 500000.00 | M19: 0.00 | N19: 0.00 | O19: 0.00 | P19: 0.00 | Q19: 0.00
A20: 208 | B20: 05 | C20: 06 | D20: 机关事业单位职业年金缴费支出 | E20: 11640.96 | F20: 11640.96 | G20: 11640.96 | H20: 0.00 | I20: 0.00 | J20: 0.00 | K20: 0.00 | L20: 0.00 | M20: 0.00 | N20: 0.00 | O20: 0.00 | P20: 0.00 | Q20: 0.00
A21: 208 | B21: 05 | C21: 05 | D21: 机关事业单位基本养老保险缴费支出 | E21: 46300.40 | F21: 46300.40 | G21: 46300.40 | H21: 0.00 | I21: 0.00 | J21: 0.00 | K21: 0.00 | L21: 0.00 | M21: 0.00 | N21: 0.00 | O21: 0.00 | P21: 0.00 | Q21: 0.00
A22: 208 | B22: 05 | C22: 06 | D22: 机关事业单位职业年金缴费支出 | E22: 7586.88 | F22: 7586.88 | G22: 7586.88 | H22: 0.00 | I22: 0.00 | J22: 0.00 | K22: 0.00 | L22: 0.00 | M22: 0.00 | N22: 0.00 | O22: 0.00 | P22: 0.00 | Q22: 0.00
A23: 208 | B23: 25 | C23: 01 | D23: 其他城市生活救助 | E23: 400000.00 | F23: 0.00 | G23: 0.00 | H23: 0.00 | I23: 0.00 | J23: 400000.00 | K23: 0.00 | L23: 400000.00 | M23: 0.00 | N23: 0.00 | O23: 0.00 | P23: 0.00 | Q23: 0.00
A24: 208 | B24: 05 | C24: 05 | D24: 机关事业单位基本养老保险缴费支出 | E24: 82838.40 | F24: 82838.40 | G24: 82838.40 | H24: 0.00 | I24: 0.00 | J24: 0.00 | K24: 0.00 | L24: 0.00 | M24: 0.00 | N24: 0.00 | O24: 0.00 | P24: 0.00 | Q24: 0.00
A25: 221 | B25: 02 | C25: 01 | D25: 住房公积金 | E25: 22607.36 | F25: 22607.36 | G25: 22607.36 | H25: 0.00 | I25: 0.00 | J25: 0.00 | K25: 0.00 | L25: 0.00 | M25: 0.00 | N25: 0.00 | O25: 0.00 | P25: 0.00 | Q25: 0.00
A26: 221 | B26: 02 | C26: 01 | D26: 住房公积金 | E26: 33135.36 | F26: 33135.36 | G26: 33135.36 | H26: 0.00 | I26: 0.00 | J26: 0.00 | K26: 0.00 | L26: 0.00 | M26: 0.00 | N26: 0.00 | O26: 0.00 | P26: 0.00 | Q26: 0.00
A27: 221 | B27: 02 | C27: 01 | D27: 住房公积金 | E27: 333607.92 | F27: 333607.92 | G27: 333607.92 | H27: 0.00 | I27: 0.00 | J27: 0.00 | K27: 0.00 | L27: 0.00 | M27: 0.00 | N27: 0.00 | O27: 0.00 | P27: 0.00 | Q27: 0.00
A28: 221 | B28: 02 | C28: 01 | D28: 住房公积金 | E28: 18520.16 | F28: 18520.16 | G28: 18520.16 | H28: 0.00 | I28: 0.00 | J28: 0.00 | K28: 0.00 | L28: 0.00 | M28: 0.00 | N28: 0.00 | O28: 0.00 | P28: 0.00 | Q28: 0.00

Sheet 基本-工资福利
A2: 基本支出预算明细表-工资福利
A3: 单位临湘市民政局
A4: 功能科目 | D4: 科目名称 | E4: 总计 | F4: 工资性支出 | K4: 社会保障缴费 | S4: 伙食补贴支出 | U4: 其他工资福利支出
A5: 类 | B5: 款 | C5: 项 | F5: 合计 | G5: 基本工资 | H5: 津贴补贴 | I5: 奖金 | J5: 绩效工资 | K5: 合计 | L5: 基本医疗保险 | M5: 医疗费 | N5: 其他社会保障缴费 | O5: 机关事业单位基本养老保险缴费 | P5: 职业年金 | Q5: 住房公积金 | R5: 公务员医疗补助缴费 | S5: 合计 | T5: 伙食补助费
D6: 合计 | E6: =E7+E11+E16+E21 -> 7,087,169.51 | F6: 5,098,385.00 | G6: 2,978,292.00 | H6: 711,300.00 | I6: 93,437.00 | J6: 1,315,356.00 | K6: 1,848,784.51 | L6: 356,886.95 | M6: 0.00 | N6: 0.00 | O6: 1,019,677.00 | P6: 64,349.76 | Q6: 407,870.80 | R6: 0.00 | S6: 0.00 | T6: 0.00 | U6: 140,000.00
E7: =SUM(E8:E10) -> 312,527.70 | F7: 231,502.00 | G7: 141,444.00 | H7: 20,940.00 | I7: 2,110.00 | J7: 67,008.00 | K7: 81,025.70 | L7: 16,205.14 | M7: 0.00 | N7: 0.00 | O7: 46,300.40 | P7: 0.00 | Q7: 18,520.16 | R7: 0.00 | S7: 0.00 | T7: 0.00 | U7: 0.00
A8: 208 | B8: 05 | C8: 05 | D8: 机关事业单位基本养老保险缴费支出 | E8: 46,300.40 | F8: 0.00 | G8: 0.00 | H8: 0.00 | I8: 0.00 | J8: 0.00 | K8: 46,300.40 | L8: 0.00 | M8: 0.00 | N8: 0.00 | O8: 46,300.40 | P8: 0.00 | Q8: 0.00 | R8: 0.00 | S8: 0.00 | T8: 0.00 | U8: 0.00
A9: 208 | B9: 10 | C9: 05 | D9: 社会福利事业单位 | E9: 247,707.14 | F9: 231,502.00 | G9: 141,444.00 | H9: 20,940.00 | I9: 2,110.00 | J9: 67,008.00 | K9: 16,205.14 | L9: 16,205.14 | M9: 0.00 | N9: 0.00 | O9: 0.00 | P9: 0.00 | Q9: 0.00 | R9: 0.00 | S9: 0.00 | T9: 0.00 | U9: 0.00
A10: 221 | B10: 02 | C10: 01 | D10: 住房公积金 | E10: 18,520.16 | F10: 0.00 | G10: 0.00 | H10: 0.00 | I10: 0.00 | J10: 0.00 | K10: 18,520.16 | L10: 0.00 | M10: 0.00 | N10: 0.00 | O10: 0.00 | P10: 0.00 | Q10: 18,520.16 | R10: 0.00 | S10: 0.00 | T10: 0.00 | U10: 0.00
E11: =SUM(E12:E15) -> 389,086.08 | F11: 282,592.00 | G11: 153,564.00 | H11: 19,800.00 | I11: 1,828.00 | J11: 107,400.00 | K11: 106,494.08 | L11: 19,781.44 | M11: 0.00 | N11: 0.00 | O11: 56,518.40 | P11: 7,586.88 | Q11: 22,607.36 | R11: 0.00 | S11: 0.00 | T11: 0.00 | U11: 0.00
A12: 208 | B12: 05 | C12: 06 | D12: 机关事业单位职业年金缴费支出 | E12: 7,586.88 | F12: 0.00 | G12: 0.00 | H12: 0.00 | I12: 0.00 | J12: 0.00 | K12: 7,586.88 | L12: 0.00 | M12: 0.00 | N12: 0.00 | O12: 0.00 | P12: 7,586.88 | Q12: 0.00 | R12: 0.00 | S12: 0.00 | T12: 0.00 | U12: 0.00
A13: 208 | B13: 10 | C13: 05 | D13: 社会福利事业单位 | E13: 302,373.44 | F13: 282,592.00 | G13: 153,564.00 | H13: 19,800.00 | I13: 1,828.00 | J13: 107,400.00 | K13: 19,781.44 | L13: 19,781.44 | M13: 0.00 | N13: 0.00 | O13: 0.00 | P13: 0.00 | Q13: 0.00 | R13: 0.00 | S13: 0.00 | T13: 0.00 | U13: 0.00
A14: 208 | B14: 05 | C14: 05 | D14: 机关事业单位基本养老保险缴费支出 | E14: 56,518.40 | F14: 0.00 | G14: 0.00 | H14: 0.00 | I14: 0.00 | J14: 0.00 | K14: 56,518.40 | L14: 0.00 | M14: 0.00 | N14: 0.00 | O14: 56,518.40 | P14: 0.00 | Q14: 0.00 | R14: 0.00 | S14: 0.00 | T14: 0.00 | U14: 0.00
A15: 221 | B15: 02 | C15: 01 | D15: 住房公积金 | E15: 22,607.36 | F15: 0.00 | G15: 0.00 | H15: 0.00 | I15: 0.00 | J15: 0.00 | K15: 22,607.36 | L15: 0.00 | M15: 0.00 | N15: 0.00 | O15: 0.00 | P15: 0.00 | Q15: 22,607.36 | R15: 0.00 | S15: 0.00 | T15: 0.00 | U15: 0.00
E16: =SUM(E17:E20) -> 570,800.16 | F16: 414,192.00 | G16: 242,088.00 | H16: 0.00 | I16: 0.00 | J16: 172,104.00 | K16: 156,608.16 | L16: 28,993.44 | M16: 0.00 | N16: 0.00 | O16: 82,838.40 | P16: 11,640.96 | Q16: 33,135.36 | R16: 0.00 | S16: 0.00 | T16: 0.00 | U16: 0.00
A17: 208 | B17: 05 | C17: 05 | D17: 机关事业单位基本养老保险缴费支出 | E17: 82,838.40 | F17: 0.00 | G17: 0.00 | H17: 0.00 | I17: 0.00 | J17: 0.00 | K17: 82,838.40 | L17: 0.00 | M17: 0.00 | N17: 0.00 | O17: 82,838.40 | P17: 0.00 | Q17: 0.00 | R17: 0.00 | S17: 0.00 | T17: 0.00 | U17: 0.00
A18: 208 | B18: 25 | C18: 01 | D18: 其他城市生活救助 | E18: 443,185.44 | F18: 414,192.00 | G18: 242,088.00 | H18: 0.00 | I18: 0.00 | J18: 172,104.00 | K18: 28,993.44 | L18: 28,993.44 | M18: 0.00 | N18: 0.00 | O18: 0.00 | P18: 0.00 | Q18: 0.00 | R18: 0.00 | S18: 0.00 | T18: 0.00 | U18: 0.00
A19: 208 | B19: 05 | C19: 06 | D19: 机关事业单位职业年金缴费支出 | E19: 11,640.96 | F19: 0.00 | G19: 0.00 | H19: 0.00 | I19: 0.00 | J19: 0.00 | K19: 11,640.96 | L19: 0.00 | M19: 0.00 | N19: 0.00 | O19: 0.00 | P19: 11,640.96 | Q19: 0.00 | R19: 0.00 | S19: 0.00 | T19: 0.00 | U19: 0.00
A20: 221 | B20: 02 | C20: 01 | D20: 住房公积金 | E20: 33,135.36 | F20: 0.00 | G20: 0.00 | H20: 0.00 | I20: 0.00 | J20: 0.00 | K20: 33,135.36 | L20: 0.00 | M20: 0.00 | N20: 0.00 | O20: 0.00 | P20: 0.00 | Q20: 33,135.36 | R20: 0.00 | S20: 0.00 | T20: 0.00 | U20: 0.00
E21: =SUM(E22:E25) -> 5,814,755.57 | F21: 4,170,099.00 | G21: 2,441,196.00 | H21: 670,560.00 | I21: 89,499.00 | J21: 968,844.00 | K21: 1,504,656.57 | L21: 291,906.93 | M21: 0.00 | N21: 0.00 | O21: 834,019.80 | P21: 45,121.92 | Q21: 333,607.92 | R21: 0.00 | S21: 0.00 | T21: 0.00 | U21: 140,000.00
A22: 208 | B22: 02 | C22: 01 | D22: 行政运行（民政管理事务） | E22: 4,602,005.93 | F22: 4,170,099.00 | G22: 2,441,196.00 | H22: 670,560.00 | I22: 89,499.00 | J22: 968,844.00 | K22: 291,906.93 | L22: 291,906.93 | M22: 0.00 | N22: 0.00 | O22: 0.00 | P22: 0.00 | Q22: 0.00 | R22: 0.00 | S22: 0.00 | T22: 0.00 | U22: 140,000.00
A23: 208 | B23: 05 | C23: 06 | D23: 机关事业单位职业年金缴费支出 | E23: 45,121.92 | F23: 0.00 | G23: 0.00 | H23: 0.00 | I23: 0.00 | J23: 0.00 | K23: 45,121.92 | L23: 0.00 | M23: 0.00 | N23: 0.00 | O23: 0.00 | P23: 45,121.92 | Q23: 0.00 | R23: 0.00 | S23: 0.00 | T23: 0.00 | U23: 0.00
A24: 208 | B24: 05 | C24: 05 | D24: 机关事业单位基本养老保险缴费支出 | E24: 834,019.80 | F24: 0.00 | G24: 0.00 | H24: 0.00 | I24: 0.00 | J24: 0.00 | K24: 834,019.80 | L24: 0.00 | M24: 0.00 | N24: 0.00 | O24: 834,019.80 | P24: 0.00 | Q24: 0.00 | R24: 0.00 | S24: 0.00 | T24: 0.00 | U24: 0.00
A25: 221 | B25: 02 | C25: 01 | D25: 住房公积金 | E25: 333,607.92 | F25: 0.00 | G25: 0.00 | H25: 0.00 | I25: 0.00 | J25: 0.00 | K25: 333,607.92 | L25: 0.00 | M25: 0.00 | N25: 0.00 | O25: 0.00 | P25: 0.00 | Q25: 333,607.92 | R25: 0.00 | S25: 0.00 | T25: 0.00 | U25: 0.00

Sheet 基本-商品和服务支出
A2: 基本支出预算明细表-商品和服务支出
A3: 单位临湘市民政局 | W3: 单位：元
A4: 功能科目 | D4: 科目名称 | E4: 总计 | F4: 办公费 | G4: 日常印刷费 | H4: 水费 | I4: 电费 | J4: 邮电费 | K4: 取暖费 | L4: 物业管理费 | M4: 差旅费 | N4: 日常维修(护)费 | O4: 租赁费 | P4: 会议费 | Q4: 培训费 | R4: 公务接待费 | S4: 劳务费 | T4: 工会经费 | U4: 福利费 | V4: 公务用车运行维护费 | W4: 其他交通费 | X4: 其他一般商品和服务支出
A5: 类 | B5: 款 | C5: 项
D6: 合计 | E6: =SUM(E7:E10) -> 657,000.00 | F6: 30,000.00 | G6: 13,000.00 | H6: 5,000.00 | I6: 23,000.00 | J6: 0.00 | K6: 0.00 | L6: 0.00 | M6: 12,000.00 | N6: 9,000.00 | O6: 0.00 | P6: 12,000.00 | Q6: 12,000.00 | R6: 494,000.00 | S6: 6,000.00 | T6: 0.00 | U6: 0.00 | V6: 0.00 | W6: 0.00 | X6: 41,000.00
A7: 208 | B7: 10 | C7: 05 | D7: 社会福利事业单位 | E7: 43,000.00 | F7: 2,000.00 | G7: 2,000.00 | H7: 0.00 | I7: 0.00 | J7: 0.00 | K7: 0.00 | L7: 0.00 | M7: 0.00 | N7: 0.00 | O7: 0.00 | P7: 1,000.00 | Q7: 1,000.00 | R7: 32,000.00 | S7: 0.00 | T7: 0.00 | U7: 0.00 | V7: 0.00 | W7: 0.00 | X7: 5,000.00
A8: 208 | B8: 25 | C8: 01 | D8: 其他城市生活救助 | E8: 50,000.00 | F8: 7,000.00 | G8: 2,000.00 | H8: 0.00 | I8: 0.00 | J8: 0.00 | K8: 0.00 | L8: 0.00 | M8: 2,000.00 | N8: 1,000.00 | O8: 0.00 | P8: 2,000.00 | Q8: 2,000.00 | R8: 32,000.00 | S8: 0.00 | T8: 0.00 | U8: 0.00 | V8: 0.00 | W8: 0.00 | X8: 2,000.00
A9: 208 | B9: 02 | C9: 01 | D9: 行政运行（民政管理事务） | E9: 537,000.00 | F9: 20,000.00 | G9: 8,000.00 | H9: 5,000.00 | I9: 22,000.00 | J9: 0.00 | K9: 0.00 | L9: 0.00 | M9: 9,000.00 | N9: 8,000.00 | O9: 0.00 | P9: 8,000.00 | Q9: 8,000.00 | R9: 410,000.00 | S9: 6,000.00 | T9: 0.00 | U9: 0.00 | V9: 0.00 | W9: 0.00 | X9: 33,000.00
A10: 208 | B10: 10 | C10: 05 | D10: 社会福利事业单位 | E10: 27,000.00 | F10: 1,000.00 | G10: 1,000.00 | H10: 0.00 | I10: 1,000.00 | J10: 0.00 | K10: 0.00 | L10: 0.00 | M10: 1,000.00 | N10: 0.00 | O10: 0.00 | P10: 1,000.00 | Q10: 1,000.00 | R10: 20,000.00 | S10: 0.00 | T10: 0.00 | U10: 0.00 | V10: 0.00 | W10: 0.00 | X10: 1,000.00

Sheet 基本-个人家庭
A2: 基本支出明细表-对个人和家庭的补助
A3: 单位临湘市民政局 | P3: 单位：元
A4: 功能科目 | D4: 科目名称 | E4: 总计 | F4: 离休费 | G4: 退休费 | H4: 退职(役)费 | I4: 抚恤金 | J4: 生活补助 | K4: 救济费 | L4: 医疗费 | M4: 助学金 | N4: 奖励金 | O4: 生产补贴 | P4: 其他对个人和家庭的补助
A5: 类 | B5: 款 | C5: 项
D6: 合计 | E6: =E7 -> 42,660.00 | F6: 0.00 | G6: 0.00 | H6: 0.00 | I6: 42,660.00 | J6: 0.00 | K6: 0.00 | L6: 0.00 | M6: 0.00 | N6: 0.00 | O6: 0.00 | P6: 0.00
A7: 208 | B7: 2 | C7: 1 | D7: 行政运行（民政管理事务） | E7: 42,660.00 | F7: 0.00 | G7: 0.00 | H7: 0.00 | I7: 42,660.00 | J7: 0.00 | K7: 0.00 | L7: 0.00 | M7: 0.00 | N7: 0.00 | O7: 0.00 | P7: 0.00

Sheet 财政拨款收支总表
A1: 2018年部门预算收支总表
A2: 填报单位：临湘市民政局 | G2: 单位：元
A3: 收入 | C3: 支出（功能科目）
A4: 项目 | B4: 本年预算 | C4: 项目 | D4: 合计 | E4: 一般公共预算 | F4: 政府性基金预算 | G4: 国有资本经营预算
A5: 一般预算拨款（补助） | B5: 15393577.55 | C5: 201、一般公共服务支出 | D5: 0.00 | E5: 0.00 | F5: 0.00
A6: 经费拨款 | B6: 15393577.55 | C6: 202、外交支出 | D6: 0.00 | E6: 0.00 | F6: 0.00
A7: 纳入预算管理的非税收入拨款 | B7: 0.00 | C7: 203、国防支出 | D7: 0.00 | E7: 0.00 | F7: 0.00
A8: 纳入专户管理的非税收入拨款 | B8: 0.00 | C8: 204、公共安全支出 | D8: 0.00 | E8: 0.00 | F8: 0.00
A9: 政府性基金拨款 | B9: 0.00 | C9: 205、教育支出 | D9: 0.00 | E9: 0.00 | F9: 0.00
A10: 事业单位经营收入 | B10: 0.00 | C10: 206、科学技术支出 | D10: 0.00 | E10: 0.00 | F10: 0.00
A11: 上级补助收入 | B11: 0.00 | C11: 207、文化体育与传媒支出 | D11: 0.00 | E11: 0.00 | F11: 0.00
A12: 附属单位上缴收入 | B12: 0.00 | C12: 208、社会保障和就业支出 | D12: 16238958.71 | E12: 0.00 | F12: 0.00
A13: 其他收入 | B13: 1253251.96 | C13: 209、社保基金支出 | D13: 0.00 | E13: 0.00 | F13: 0.00
A14: 上年结转 | B14: 0.00 | C14: 210、医疗卫生与计划生育支出 | D14: 0.00 | E14: 0.00 | F14: 0.00
C15: 211、节能环保支出 | D15: 0.00 | E15: 0.00 | F15: 0.00
C16: 212、城乡社区支出 | D16: 0.00 | E16: 0.00 | F16: 0.00
C17: 213、农林水支出 | D17: 0.00 | E17: 0.00 | F17: 0.00
C18: 214、交通运输支出 | D18: 0.00 | E18: 0.00 | F18: 0.00
C19: 215、资源勘探信息等支出 | D19: 0.00 | E19: 0.00 | F19: 0.00
C20: 216、商业服务业等支出 | D20: 0.00 | E20: 0.00 | F20: 0.00
C21: 217、金融支出 | D21: 0.00 | E21: 0.00 | F21: 0.00
C22: 219、援助其他地区支出 | D22: 0.00 | E22: 0.00 | F22: 0.00
C23: 220、国土海洋气象等支出 | D23: 0.00 | E23: 0.00 | F23: 0.00
C24: 221、住房保障支出 | D24: 407870.80 | E24: 0.00 | F24: 0.00
C25: 222、粮油物资储备支出 | D25: 0.00 | E25: 0.00 | F25: 0.00
C26: 223、国有资本经营预算支出 | D26: 0.00 | E26: 0.00 | F26: 0.00
C27: 227、预备费 | D27: 0.00 | E27: 0.00 | F27: 0.00
C28: 229、其他支出 | D28: 0.00 | E28: 0.00 | F28: 0.00
C29: 230、转移性支出 | D29: 0.00 | E29: 0.00 | F29: 0.00
C30: 231、债务还本支出 | D30: 0.00 | E30: 0.00 | F30: 0.00
C31: 232、债务付息支出 | D31: 0.00 | E31: 0.00 | F31: 0.00
C32: 233、债务发行费用支出 | D32: 0.00 | E32: 0.00 | F32: 0.00
A34: 本年收入合计 | B34: 16,646,829.51 | C34: 本年支出合计 | D34: 16,646,829.51 | E34: 0.0000 | F34: 0.00

Sheet 一般预算支出表
A2: 一般公共预算支出情况表
A3: 单位临湘市民政局 | P3: 单位：元
A4: 功能科目 | E4: 总计 | F4: 基本支出 | J4: 项目支出
A5: 科目编码 | D5: 科目名称 | F5: 合计 | G5: 工资福利支出 | H5: 一般商品和服务支出 | I5: 对个人和家庭的补助 | J5: 合计 | K5: 商品和服务支出 | L5: 对个人和家庭的补助支出 | M5: 基本建设 | N5: 其他资本性支出 | O5: 对企事业单位的补贴 | P5: 其他支出 | Q5: 债务利息及费用支出
A6: 类 | B6: 款 | C6: 项
D7: 合计 | E7: =SUM(E8:E25) -> 15,393,577.55 | F7: 6,533,577.55 | G7: 5,936,917.55 | H7: 554,000.00 | I7: 42,660.00 | J7: 8,860,000.00 | K7: 2,598,000.00 | L7: 6,262,000.00 | M7: 0.00 | N7: 0.00 | O7: 0.00 | P7: 0.00 | Q7: 0.00
A8: 208 | B8: 08 | C8: 05 | D8: 义务兵优待 | E8: 1,700,000.00 | F8: 0.00 | G8: 0.00 | H8: 0.00 | I8: 0.00 | J8: 1,700,000.00 | K8: 0.00 | L8: 1,700,000.00 | M8: 0.00 | N8: 0.00 | O8: 0.00 | P8: 0.00 | Q8: 0.00
A9: 208 | B9: 10 | C9: 05 | D9: 社会福利事业单位 | E9: 231,898.92 | F9: 231,898.92 | G9: 200,898.92 | H9: 31,000.00 | I9: 0.00 | J9: 0.00 | K9: 0.00 | L9: 0.00 | M9: 0.00 | N9: 0.00 | O9: 0.00 | P9: 0.00 | Q9: 0.00
A10: 208 | B10: 05 | C10: 05 | D10: 机关事业单位基本养老保险缴费支出 | E10: 37,551.20 | F10: 37,551.20 | G10: 37,551.20 | H10: 0.00 | I10: 0.00 | J10: 0.00 | K10: 0.00 | L10: 0.00 | M10: 0.00 | N10: 0.00 | O10: 0.00 | P10: 0.00 | Q10: 0.00
A11: 208 | B11: 25 | C11: 01 | D11: 其他城市生活救助 | E11: 400,000.00 | F11: 0.00 | G11: 0.00 | H11: 0.00 | I11: 0.00 | J11: 400,000.00 | K11: 0.00 | L11: 400,000.00 | M11: 0.00 | N11: 0.00 | O11: 0.00 | P11: 0.00 | Q11: 0.00
A12: 208 | B12: 10 | C12: 02 | D12: 老年福利 | E12: 200,000.00 | F12: 0.00 | G12: 0.00 | H12: 0.00 | I12: 0.00 | J12: 200,000.00 | K12: 0.00 | L12: 200,000.00 | M12: 0.00 | N12: 0.00 | O12: 0.00 | P12: 0.00 | Q12: 0.00
A13: 208 | B13: 02 | C13: 01 | D13: 行政运行（民政管理事务） | E13: 6,826,160.25 | F13: 4,506,160.25 | G13: 3,998,500.25 | H13: 465,000.00 | I13: 42,660.00 | J13: 2,320,000.00 | K13: 1,098,000.00 | L13: 1,222,000.00 | M13: 0.00 | N13: 0.00 | O13: 0.00 | P13: 0.00 | Q13: 0.00
A14: 208 | B14: 25 | C14: 01 | D14: 其他城市生活救助 | E14: 319,487.60 | F14: 319,487.60 | G14: 287,487.60 | H14: 32,000.00 | I14: 0.00 | J14: 0.00 | K14: 0.00 | L14: 0.00 | M14: 0.00 | N14: 0.00 | O14: 0.00 | P14: 0.00 | Q14: 0.00
A15: 208 | B15: 05 | C15: 05 | D15: 机关事业单位基本养老保险缴费支出 | E15: 46,300.40 | F15: 46,300.40 | G15: 46,300.40 | H15: 0.00 | I15: 0.00 | J15: 0.00 | K15: 0.00 | L15: 0.00 | M15: 0.00 | N15: 0.00 | O15: 0.00 | P15: 0.00 | Q15: 0.00
A16: 208 | B16: 09 | C16: 01 | D16: 退役士兵安置 | E16: 1,240,000.00 | F16: 0.00 | G16: 0.00 | H16: 0.00 | I16: 0.00 | J16: 1,240,000.00 | K16: 0.00 | L16: 1,240,000.00 | M16: 0.00 | N16: 0.00 | O16: 0.00 | P16: 0.00 | Q16: 0.00
A17: 208 | B17: 21 | C17: 02 | D17: 农村五保供养支出 | E17: 1,000,000.00 | F17: 0.00 | G17: 0.00 | H17: 0.00 | I17: 0.00 | J17: 1,000,000.00 | K17: 0.00 | L17: 1,000,000.00 | M17: 0.00 | N17: 0.00 | O17: 0.00 | P17: 0.00 | Q17: 0.00
A18: 208 | B18: 19 | C18: 02 | D18: 农村最低生活保障金支出 | E18: 2,000,000.00 | F18: 0.00 | G18: 0.00 | H18: 0.00 | I18: 0.00 | J18: 2,000,000.00 | K18: 1,500,000.00 | L18: 500,000.00 | M18: 0.00 | N18: 0.00 | O18: 0.00 | P18: 0.00 | Q18: 0.00
A19: 208 | B19: 05 | C19: 05 | D19: 机关事业单位基本养老保险缴费支出 | E19: 721,215.00 | F19: 721,215.00 | G19: 721,215.00 | H19: 0.00 | I19: 0.00 | J19: 0.00 | K19: 0.00 | L19: 0.00 | M19: 0.00 | N19: 0.00 | O19: 0.00 | P19: 0.00 | Q19: 0.00
A20: 208 | B20: 05 | C20: 05 | D20: 机关事业单位基本养老保险缴费支出 | E20: 53,736.00 | F20: 53,736.00 | G20: 53,736.00 | H20: 0.00 | I20: 0.00 | J20: 0.00 | K20: 0.00 | L20: 0.00 | M20: 0.00 | N20: 0.00 | O20: 0.00 | P20: 0.00 | Q20: 0.00
A21: 208 | B21: 10 | C21: 05 | D21: 社会福利事业单位 | E21: 273,707.14 | F21: 273,707.14 | G21: 247,707.14 | H21: 26,000.00 | I21: 0.00 | J21: 0.00 | K21: 0.00 | L21: 0.00 | M21: 0.00 | N21: 0.00 | O21: 0.00 | P21: 0.00 | Q21: 0.00
A22: 221 | B22: 02 | C22: 01 | D22: 住房公积金 | E22: 15,020.48 | F22: 15,020.48 | G22: 15,020.48 | H22: 0.00 | I22: 0.00 | J22: 0.00 | K22: 0.00 | L22: 0.00 | M22: 0.00 | N22: 0.00 | O22: 0.00 | P22: 0.00 | Q22: 0.00
A23: 221 | B23: 02 | C23: 01 | D23: 住房公积金 | E23: 288,486.00 | F23: 288,486.00 | G23: 288,486.00 | H23: 0.00 | I23: 0.00 | J23: 0.00 | K23: 0.00 | L23: 0.00 | M23: 0.00 | N23: 0.00 | O23: 0.00 | P23: 0.00 | Q23: 0.00
A24: 221 | B24: 02 | C24: 01 | D24: 住房公积金 | E24: 21,494.40 | F24: 21,494.40 | G24: 21,494.40 | H24: 0.00 | I24: 0.00 | J24: 0.00 | K24: 0.00 | L24: 0.00 | M24: 0.00 | N24: 0.00 | O24: 0.00 | P24: 0.00 | Q24: 0.00
A25: 221 | B25: 02 | C25: 01 | D25: 住房公积金 | E25: 18,520.16 | F25: 18,520.16 | G25: 18,520.16 | H25: 0.00 | I25: 0.00 | J25: 0.00 | K25: 0.00 | L25: 0.00 | M25: 0.00 | N25: 0.00 | O25: 0.00 | P25: 0.00 | Q25: 0.00

Sheet 一般预算基本支出表
A2: 一般公共预算基本支出情况表
A3: 单位临湘市民政局 | I3: 单位：元
A4: 功能科目 | E4: 总计 | F4: 基本支出
A5: 科目编码 | D5: 科目名称 | F5: 合计 | G5: 工资福利支出 | H5: 一般商品和服务支出 | I5: 对个人和家庭的补助
A6: 类 | B6: 款 | C6: 项
D7: 合计 | E7: =SUM(E8:E19) -> 6,533,577.55 | F7: =SUM(F8:F19) -> 6,533,577.55 | G7: =SUM(G8:G19) -> 5,936,917.55 | H7: =SUM(H8:H19) -> 554,000.00 | I7: =SUM(I8:I19) -> 42,660.00
A8: 208 | B8: 05 | C8: 05 | D8: 机关事业单位基本养老保险缴费支出 | E8: 53,736.00 | F8: 53,736.00 | G8: 53,736.00 | H8: 0.00 | I8: 0.00
A9: 208 | B9: 10 | C9: 05 | D9: 社会福利事业单位 | E9: 273,707.14 | F9: 273,707.14 | G9: 247,707.14 | H9: 26,000.00 | I9: 0.00
A10: 208 | B10: 05 | C10: 05 | D10: 机关事业单位基本养老保险缴费支出 | E10: 37,551.20 | F10: 37,551.20 | G10: 37,551.20 | H10: 0.00 | I10: 0.00
A11: 208 | B11: 10 | C11: 05 | D11: 社会福利事业单位 | E11: 231,898.92 | F11: 231,898.92 | G11: 200,898.92 | H11: 31,000.00 | I11: 0.00
A12: 208 | B12: 02 | C12: 01 | D12: 行政运行（民政管理事务） | E12: 4,506,160.25 | F12: 4,506,160.25 | G12: 3,998,500.25 | H12: 465,000.00 | I12: 42,660.00
A13: 208 | B13: 05 | C13: 05 | D13: 机关事业单位基本养老保险缴费支出 | E13: 46,300.40 | F13: 46,300.40 | G13: 46,300.40 | H13: 0.00 | I13: 0.00
A14: 208 | B14: 05 | C14: 05 | D14: 机关事业单位基本养老保险缴费支出 | E14: 721,215.00 | F14: 721,215.00 | G14: 721,215.00 | H14: 0.00 | I14: 0.00
A15: 208 | B15: 25 | C15: 01 | D15: 其他城市生活救助 | E15: 319,487.60 | F15: 319,487.60 | G15: 287,487.60 | H15: 32,000.00 | I15: 0.00
A16: 221 | B16: 02 | C16: 01 | D16: 住房公积金 | E16: 21,494.40 | F16: 21,494.40 | G16: 21,494.40 | H16: 0.00 | I16: 0.00
A17: 221 | B17: 02 | C17: 01 | D17: 住房公积金 | E17: 18,520.16 | F17: 18,520.16 | G17: 18,520.16 | H17: 0.00 | I17: 0.00
A18: 221 | B18: 02 | C18: 01 | D18: 住房公积金 | E18: 15,020.48 | F18: 15,020.48 | G18: 15,020.48 | H18: 0.00 | I18: 0.00
A19: 221 | B19: 02 | C19: 01 | D19: 住房公积金 | E19: 288,486.00 | F19: 288,486.00 | G19: 288,486.00 | H19: 0.00 | I19: 0.00

Sheet 一般-工资福利
A2: 一般公共预算基本支出预算明细表-工资福利支出
A3: 单位临湘市民政局 | U3: 单位：元
A4: 功能科目 | D4: 科目名称 | E4: 总计 | F4: 工资性支出 | K4: 社会保障缴费 | S4: 伙食补贴支出 | U4: 其他工资福利支出
A5: 类 | B5: 款 | C5: 项 | F5: 合计 | G5: 基本工资 | H5: 津贴补贴 | I5: 奖金 | J5: 绩效工资 | K5: 合计 | L5: 基本医疗保险 | M5: 公务员医疗补助缴费 | N5: 其他社会保障缴费 | O5: 机关事业单位基本养老保险缴费 | P5: 职业年金 | Q5: 住房公积金 | R5: 医疗费 | S5: 合计 | T5: 伙食补助费
D6: 合计 | E6: =SUM(E7:E18) -> 5,936,917.55 | F6: 4,294,013.00 | G6: 2,543,532.00 | H6: 711,300.00 | I6: 93,437.00 | J6: 945,744.00 | K6: 1,502,904.55 | L6: 300,580.91 | M6: 0.00 | N6: 0.00 | O6: 858,802.60 | P6: 0.00 | Q6: 343,521.04 | R6: 0.00 | S6: 0.00 | T6: 0.00 | U6: 140,000.00
A7: 208 | B7: 5 | C7: 5 | D7: 机关事业单位基本养老保险缴费支出 | E7: 721,215.00 | F7: 0.00 | G7: 0.00 | H7: 0.00 | I7: 0.00 | J7: 0.00 | K7: 721,215.00 | L7: 0.00 | M7: 0.00 | N7: 0.00 | O7: 721,215.00 | P7: 0.00 | Q7: 0.00 | R7: 0.00 | S7: 0.00 | T7: 0.00 | U7: 0.00
A8: 208 | B8: 5 | C8: 5 | D8: 机关事业单位基本养老保险缴费支出 | E8: 37,551.20 | F8: 0.00 | G8: 0.00 | H8: 0.00 | I8: 0.00 | J8: 0.00 | K8: 37,551.20 | L8: 0.00 | M8: 0.00 | N8: 0.00 | O8: 37,551.20 | P8: 0.00 | Q8: 0.00 | R8: 0.00 | S8: 0.00 | T8: 0.00 | U8: 0.00
A9: 208 | B9: 2 | C9: 1 | D9: 行政运行（民政管理事务） | E9: 3,998,500.25 | F9: 3,606,075.00 | G9: 2,140,020.00 | H9: 670,560.00 | I9: 89,499.00 | J9: 705,996.00 | K9: 252,425.25 | L9: 252,425.25 | M9: 0.00 | N9: 0.00 | O9: 0.00 | P9: 0.00 | Q9: 0.00 | R9: 0.00 | S9: 0.00 | T9: 0.00 | U9: 140,000.00
A10: 208 | B10: 10 | C10: 5 | D10: 社会福利事业单位 | E10: 247,707.14 | F10: 231,502.00 | G10: 141,444.00 | H10: 20,940.00 | I10: 2,110.00 | J10: 67,008.00 | K10: 16,205.14 | L10: 16,205.14 | M10: 0.00 | N10: 0.00 | O10: 0.00 | P10: 0.00 | Q10: 0.00 | R10: 0.00 | S10: 0.00 | T10: 0.00 | U10: 0.00
A11: 208 | B11: 10 | C11: 5 | D11: 社会福利事业单位 | E11: 200,898.92 | F11: 187,756.00 | G11: 101,640.00 | H11: 19,800.00 | I11: 1,828.00 | J11: 64,488.00 | K11: 13,142.92 | L11: 13,142.92 | M11: 0.00 | N11: 0.00 | O11: 0.00 | P11: 0.00 | Q11: 0.00 | R11: 0.00 | S11: 0.00 | T11: 0.00 | U11: 0.00
A12: 208 | B12: 5 | C12: 5 | D12: 机关事业单位基本养老保险缴费支出 | E12: 46,300.40 | F12: 0.00 | G12: 0.00 | H12: 0.00 | I12: 0.00 | J12: 0.00 | K12: 46,300.40 | L12: 0.00 | M12: 0.00 | N12: 0.00 | O12: 46,300.40 | P12: 0.00 | Q12: 0.00 | R12: 0.00 | S12: 0.00 | T12: 0.00 | U12: 0.00
A13: 208 | B13: 25 | C13: 1 | D13: 其他城市生活救助 | E13: 287,487.60 | F13: 268,680.00 | G13: 160,428.00 | H13: 0.00 | I13: 0.00 | J13: 108,252.00 | K13: 18,807.60 | L13: 18,807.60 | M13: 0.00 | N13: 0.00 | O13: 0.00 | P13: 0.00 | Q13: 0.00 | R13: 0.00 | S13: 0.00 | T13: 0.00 | U13: 0.00
A14: 208 | B14: 5 | C14: 5 | D14: 机关事业单位基本养老保险缴费支出 | E14: 53,736.00 | F14: 0.00 | G14: 0.00 | H14: 0.00 | I14: 0.00 | J14: 0.00 | K14: 53,736.00 | L14: 0.00 | M14: 0.00 | N14: 0.00 | O14: 53,736.00 | P14: 0.00 | Q14: 0.00 | R14: 0.00 | S14: 0.00 | T14: 0.00 | U14: 0.00
A15: 221 | B15: 2 | C15: 1 | D15: 住房公积金 | E15: 21,494.40 | F15: 0.00 | G15: 0.00 | H15: 0.00 | I15: 0.00 | J15: 0.00 | K15: 21,494.40 | L15: 0.00 | M15: 0.00 | N15: 0.00 | O15: 0.00 | P15: 0.00 | Q15: 21,494.40 | R15: 0.00 | S15: 0.00 | T15: 0.00 | U15: 0.00
A16: 221 | B16: 2 | C16: 1 | D16: 住房公积金 | E16: 18,520.16 | F16: 0.00 | G16: 0.00 | H16: 0.00 | I16: 0.00 | J16: 0.00 | K16: 18,520.16 | L16: 0.00 | M16: 0.00 | N16: 0.00 | O16: 0.00 | P16: 0.00 | Q16: 18,520.16 | R16: 0.00 | S16: 0.00 | T16: 0.00 | U16: 0.00
A17: 221 | B17: 2 | C17: 1 | D17: 住房公积金 | E17: 15,020.48 | F17: 0.00 | G17: 0.00 | H17: 0.00 | I17: 0.00 | J17: 0.00 | K17: 15,020.48 | L17: 0.00 | M17: 0.00 | N17: 0.00 | O17: 0.00 | P17: 0.00 | Q17: 15,020.48 | R17: 0.00 | S17: 0.00 | T17: 0.00 | U17: 0.00
A18: 221 | B18: 2 | C18: 1 | D18: 住房公积金 | E18: 288,486.00 | F18: 0.00 | G18: 0.00 | H18: 0.00 | I18: 0.00 | J18: 0.00 | K18: 288,486.00 | L18: 0.00 | M18: 0.00 | N18: 0.00 | O18: 0.00 | P18: 0.00 | Q18: 288,486.00 | R18: 0.00 | S18: 0.00 | T18: 0.00 | U18: 0.00

Sheet 一般-商品和服务支出
A2: 一般公共预算基本预算支出明细表-商品和服务支出
X3: 单位：元
A4: 功能科目 | D4: 科目名称 | E4: 总计 | F4: 办公费 | G4: 日常印刷费 | H4: 水费 | I4: 电费 | J4: 邮电费 | K4: 取暖费 | L4: 物业管理费 | M4: 差旅费 | N4: 日常维修(护)费 | O4: 租赁费 | P4: 会议费 | Q4: 培训费 | R4: 公务接待费 | S4: 劳务费 | T4: 工会经费 | U4: 福利费 | V4: 公务用车运行维护费 | W4: 其他交通费 | X4: 其他一般商品和服务支出
A5: 类 | B5: 款 | C5: 项
D6: 合计 | E6: =SUM(E7:E11) -> 3,152,000.00 | F6: 614,000.00 | G6: 561,000.00 | H6: 34,000.00 | I6: 191,000.00 | J6: 0.00 | K6: 0.00 | L6: 50,000.00 | M6: 659,000.00 | N6: 507,000.00 | O6: 0.00 | P6: 9,000.00 | Q6: 9,000.00 | R6: 422,000.00 | S6: 6,000.00 | T6: 0.00 | U6: 0.00 | V6: 0.00 | W6: 0.00 | X6: 40,000.0000
A7: 208 | B7: 25 | C7: 1 | D7: 其他城市生活救助 | E7: 32,000.00 | F7: 4,000.00 | G7: 1,000.00 | H7: 0.00 | I7: 0.00 | J7: 0.00 | K7: 0.00 | L7: 0.00 | M7: 2,000.00 | N7: 1,000.00 | O7: 0.00 | P7: 1,000.00 | Q7: 1,000.00 | R7: 20,000.00 | S7: 0.00 | T7: 0.00 | U7: 0.00 | V7: 0.00 | W7: 0.00 | X7: 2,000.0000
A8: 208 | B8: 2 | C8: 1 | D8: 行政运行（民政管理事务） | E8: 1,563,000.00 | F8: 208,000.00 | G8: 158,000.00 | H8: 34,000.00 | I8: 190,000.00 | J8: 0.00 | K8: 0.00 | L8: 50,000.00 | M8: 256,000.00 | N8: 206,000.00 | O8: 0.00 | P8: 6,000.00 | Q8: 6,000.00 | R8: 360,000.00 | S8: 6,000.00 | T8: 0.00 | U8: 0.00 | V8: 0.00 | W8: 0.00 | X8: 33,000.0000
A9: 208 | B9: 19 | C9: 2 | D9: 农村最低生活保障金支出 | E9: 1,500,000.00 | F9: 400,000.00 | G9: 400,000.00 | H9: 0.00 | I9: 0.00 | J9: 0.00 | K9: 0.00 | L9: 0.00 | M9: 400,000.00 | N9: 300,000.00 | O9: 0.00 | P9: 0.00 | Q9: 0.00 | R9: 0.00 | S9: 0.00 | T9: 0.00 | U9: 0.00 | V9: 0.00 | W9: 0.00 | X9: 0.0000
A10: 208 | B10: 10 | C10: 5 | D10: 社会福利事业单位 | E10: 26,000.00 | F10: 1,000.00 | G10: 1,000.00 | H10: 0.00 | I10: 1,000.00 | J10: 0.00 | K10: 0.00 | L10: 0.00 | M10: 1,000.00 | N10: 0.00 | O10: 0.00 | P10: 1,000.00 | Q10: 1,000.00 | R10: 20,000.00 | S10: 0.00 | T10: 0.00 | U10: 0.00 | V10: 0.00 | W10: 0.00 | X10: 0.0000
A11: 208 | B11: 10 | C11: 5 | D11: 社会福利事业单位 | E11: 31,000.00 | F11: 1,000.00 | G11: 1,000.00 | H11: 0.00 | I11: 0.00 | J11: 0.00 | K11: 0.00 | L11: 0.00 | M11: 0.00 | N11: 0.00 | O11: 0.00 | P11: 1,000.00 | Q11: 1,000.00 | R11: 22,000.00 | S11: 0.00 | T11: 0.00 | U11: 0.00 | V11: 0.00 | W11: 0.00 | X11: 5,000.0000

Sheet 一般-个人家庭
A2: 一般公共预算基本支出明细表-对个人和家庭的补助
P3: 单位：元
A4: 功能科目 | D4: 科目名称 | E4: 总计 | F4: 离休费 | G4: 退休费 | H4: 退职(役)费 | I4: 抚恤金 | J4: 生活补助 | K4: 救济费 | L4: 医疗费 | M4: 助学金 | N4: 奖励金 | O4: 生产补贴 | P4: 其他对个人和家庭的补助
A5: 类 | B5: 款 | C5: 项
D6: 合计 | E6: =SUM(E7:E13) -> 6,304,660.00 | F6: 0.00 | G6: 0.00 | H6: 0.00 | I6: 42,660.00 | J6: 0.00 | K6: 0.00 | L6: 0.00 | M6: 0.00 | N6: 0.00 | O6: 0.00 | P6: 6,262,000.00
A7: 208 | B7: 2 | C7: 1 | D7: 行政运行（民政管理事务） | E7: 1,264,660.00 | F7: 0.00 | G7: 0.00 | H7: 0.00 | I7: 42,660.00 | J7: 0.00 | K7: 0.00 | L7: 0.00 | M7: 0.00 | N7: 0.00 | O7: 0.00 | P7: 1,222,000.00
A8: 208 | B8: 9 | C8: 1 | D8: 退役士兵安置 | E8: 1,240,000.00 | F8: 0.00 | G8: 0.00 | H8: 0.00 | I8: 0.00 | J8: 0.00 | K8: 0.00 | L8: 0.00 | M8: 0.00 | N8: 0.00 | O8: 0.00 | P8: 1,240,000.00
A9: 208 | B9: 10 | C9: 2 | D9: 老年福利 | E9: 200,000.00 | F9: 0.00 | G9: 0.00 | H9: 0.00 | I9: 0.00 | J9: 0.00 | K9: 0.00 | L9: 0.00 | M9: 0.00 | N9: 0.00 | O9: 0.00 | P9: 200,000.00
A10: 208 | B10: 19 | C10: 2 | D10: 农村最低生活保障金支出 | E10: 500,000.00 | F10: 0.00 | G10: 0.00 | H10: 0.00 | I10: 0.00 | J10: 0.00 | K10: 0.00 | L10: 0.00 | M10: 0.00 | N10: 0.00 | O10: 0.00 | P10: 500,000.00
A11: 208 | B11: 25 | C11: 1 | D11: 其他城市生活救助 | E11: 400,000.00 | F11: 0.00 | G11: 0.00 | H11: 0.00 | I11: 0.00 | J11: 0.00 | K11: 0.00 | L11: 0.00 | M11: 0.00 | N11: 0.00 | O11: 0.00 | P11: 400,000.00
A12: 208 | B12: 8 | C12: 5 | D12: 义务兵优待 | E12: 1,700,000.00 | F12: 0.00 | G12: 0.00 | H12: 0.00 | I12: 0.00 | J12: 0.00 | K12: 0.00 | L12: 0.00 | M12: 0.00 | N12: 0.00 | O12: 0.00 | P12: 1,700,000.00
A13: 208 | B13: 21 | C13: 2 | D13: 农村五保供养支出 | E13: 1,000,000.00 | F13: 0.00 | G13: 0.00 | H13: 0.00 | I13: 0.00 | J13: 0.00 | K13: 0.00 | L13: 0.00 | M13: 0.00 | N13: 0.00 | O13: 0.00 | P13: 1,000,000.00

Sheet 基金
A2: 政府性基金预算支出情况表
A3: 单位临湘市民政局 | Q3: 单位：元
A4: 功能科目 | E4: 总计 | F4: 基本支出 | J4: 项目支出
A5: 科目编码 | D5: 科目名称 | F5: 合计 | G5: 工资福利支出 | H5: 一般商品和服务支出 | I5: 对个人和家庭的补助 | J5: 合计 | K5: 商品和服务支出 | L5: 对个人和家庭的补助支出 | M5: 基本建设 | N5: 其他资本性支出 | O5: 对企事业单位的补贴 | P5: 其他支出 | Q5: 债务利息及费用支出
A6: 类 | B6: 款 | C6: 项

Sheet 专户
A2: 纳入专户管理的非税收入预算拨款汇总表
A3: 单位临湘市民政局 | Q3: 单位：元
A4: 功能科目 | E4: 总计 | F4: 基本支出 | J4: 项目支出
A5: 科目编码 | D5: 科目名称 | F5: 合计 | G5: 工资福利支出 | H5: 一般商品和服务支出 | I5: 对个人和家庭的补助 | J5: 合计 | K5: 商品和服务支出 | L5: 对个人和家庭的补助支出 | M5: 基本建设 | N5: 其他资本性支出 | O5: 对企事业单位的补贴 | P5: 其他支出 | Q5: 债务利息及费用支出
A6: 类 | B6: 款 | C6: 项

Sheet 经费拨款
A2: 一般预算拨款-经费拨款
A3: 单位临湘市民政局 | Q3: 单位：元
A4: 功能科目 | E4: 总计 | F4: 基本支出 | J4: 项目支出
A5: 科目编码 | D5: 科目名称 | F5: 合计 | G5: 工资福利支出 | H5: 一般商品和服务支出 | I5: 对个人和家庭的补助 | J5: 合计 | K5: 商品和服务支出 | L5: 对个人和家庭的补助支出 | M5: 基本建设 | N5: 其他资本性支出 | O5: 对企事业单位的补贴 | P5: 其他支出 | Q5: 债务利息及费用支出
A6: 类 | B6: 款 | C6: 项
D7: 合计 | E7: =SUM(E8:E25) -> 15,393,577.55 | F7: 6,533,577.55 | G7: 5,936,917.55 | H7: 554,000.00 | I7: 42,660.00 | J7: 8,860,000.00 | K7: 2,598,000.00 | L7: 6,262,000.00 | M7: 0.00 | N7: 0.00 | O7: 0.00 | P7: 0.00 | Q7: 0.00
A8: 221 | B8: 2 | C8: 1 | D8: 住房公积金 | E8: 18,520.16 | F8: 18,520.16 | G8: 18,520.16 | H8: 0.00 | I8: 0.00 | J8: 0.00 | K8: 0.00 | L8: 0.00 | M8: 0.00 | N8: 0.00 | O8: 0.00 | P8: 0.00 | Q8: 0.00
A9: 208 | B9: 10 | C9: 5 | D9: 社会福利事业单位 | E9: 231,898.92 | F9: 231,898.92 | G9: 200,898.92 | H9: 31,000.00 | I9: 0.00 | J9: 0.00 | K9: 0.00 | L9: 0.00 | M9: 0.00 | N9: 0.00 | O9: 0.00 | P9: 0.00 | Q9: 0.00
A10: 208 | B10: 5 | C10: 5 | D10: 机关事业单位基本养老保险缴费支出 | E10: 721,215.00 | F10: 721,215.00 | G10: 721,215.00 | H10: 0.00 | I10: 0.00 | J10: 0.00 | K10: 0.00 | L10: 0.00 | M10: 0.00 | N10: 0.00 | O10: 0.00 | P10: 0.00 | Q10: 0.00
A11: 221 | B11: 2 | C11: 1 | D11: 住房公积金 | E11: 288,486.00 | F11: 288,486.00 | G11: 288,486.00 | H11: 0.00 | I11: 0.00 | J11: 0.00 | K11: 0.00 | L11: 0.00 | M11: 0.00 | N11: 0.00 | O11: 0.00 | P11: 0.00 | Q11: 0.00
A12: 208 | B12: 25 | C12: 1 | D12: 其他城市生活救助 | E12: 319,487.60 | F12: 319,487.60 | G12: 287,487.60 | H12: 32,000.00 | I12: 0.00 | J12: 0.00 | K12: 0.00 | L12: 0.00 | M12: 0.00 | N12: 0.00 | O12: 0.00 | P12: 0.00 | Q12: 0.00
A13: 208 | B13: 5 | C13: 5 | D13: 机关事业单位基本养老保险缴费支出 | E13: 37,551.20 | F13: 37,551.20 | G13: 37,551.20 | H13: 0.00 | I13: 0.00 | J13: 0.00 | K13: 0.00 | L13: 0.00 | M13: 0.00 | N13: 0.00 | O13: 0.00 | P13: 0.00 | Q13: 0.00
A14: 208 | B14: 9 | C14: 1 | D14: 退役士兵安置 | E14: 1,240,000.00 | F14: 0.00 | G14: 0.00 | H14: 0.00 | I14: 0.00 | J14: 1,240,000.00 | K14: 0.00 | L14: 1,240,000.00 | M14: 0.00 | N14: 0.00 | O14: 0.00 | P14: 0.00 | Q14: 0.00
A15: 208 | B15: 21 | C15: 2 | D15: 农村五保供养支出 | E15: 1,000,000.00 | F15: 0.00 | G15: 0.00 | H15: 0.00 | I15: 0.00 | J15: 1,000,000.00 | K15: 0.00 | L15: 1,000,000.00 | M15: 0.00 | N15: 0.00 | O15: 0.00 | P15: 0.00 | Q15: 0.00
A16: 208 | B16: 10 | C16: 2 | D16: 老年福利 | E16: 200,000.00 | F16: 0.00 | G16: 0.00 | H16: 0.00 | I16: 0.00 | J16: 200,000.00 | K16: 0.00 | L16: 200,000.00 | M16: 0.00 | N16: 0.00 | O16: 0.00 | P16: 0.00 | Q16: 0.00
A17: 208 | B17: 2 | C17: 1 | D17: 行政运行（民政管理事务） | E17: 6,826,160.25 | F17: 4,506,160.25 | G17: 3,998,500.25 | H17: 465,000.00 | I17: 42,660.00 | J17: 2,320,000.00 | K17: 1,098,000.00 | L17: 1,222,000.00 | M17: 0.00 | N17: 0.00 | O17: 0.00 | P17: 0.00 | Q17: 0.00
A18: 221 | B18: 2 | C18: 1 | D18: 住房公积金 | E18: 15,020.48 | F18: 15,020.48 | G18: 15,020.48 | H18: 0.00 | I18: 0.00 | J18: 0.00 | K18: 0.00 | L18: 0.00 | M18: 0.00 | N18: 0.00 | O18: 0.00 | P18: 0.00 | Q18: 0.00
A19: 208 | B19: 19 | C19: 2 | D19: 农村最低生活保障金支出 | E19: 2,000,000.00 | F19: 0.00 | G19: 0.00 | H19: 0.00 | I19: 0.00 | J19: 2,000,000.00 | K19: 1,500,000.00 | L19: 500,000.00 | M19: 0.00 | N19: 0.00 | O19: 0.00 | P19: 0.00 | Q19: 0.00
A20: 208 | B20: 5 | C20: 5 | D20: 机关事业单位基本养老保险缴费支出 | E20: 46,300.40 | F20: 46,300.40 | G20: 46,300.40 | H20: 0.00 | I20: 0.00 | J20: 0.00 | K20: 0.00 | L20: 0.00 | M20: 0.00 | N20: 0.00 | O20: 0.00 | P20: 0.00 | Q20: 0.00
A21: 221 | B21: 2 | C21: 1 | D21: 住房公积金 | E21: 21,494.40 | F21: 21,494.40 | G21: 21,494.40 | H21: 0.00 | I21: 0.00 | J21: 0.00 | K21: 0.00 | L21: 0.00 | M21: 0.00 | N21: 0.00 | O21: 0.00 | P21: 0.00 | Q21: 0.00
A22: 208 | B22: 25 | C22: 1 | D22: 其他城市生活救助 | E22: 400,000.00 | F22: 0.00 | G22: 0.00 | H22: 0.00 | I22: 0.00 | J22: 400,000.00 | K22: 0.00 | L22: 400,000.00 | M22: 0.00 | N22: 0.00 | O22: 0.00 | P22: 0.00 | Q22: 0.00
A23: 208 | B23: 5 | C23: 5 | D23: 机关事业单位基本养老保险缴费支出 | E23: 53,736.00 | F23: 53,736.00 | G23: 53,736.00 | H23: 0.00 | I23: 0.00 | J23: 0.00 | K23: 0.00 | L23: 0.00 | M23: 0.00 | N23: 0.00 | O23: 0.00 | P23: 0.00 | Q23: 0.00
A24: 208 | B24: 8 | C24: 5 | D24: 义务兵优待 | E24: 1,700,000.00 | F24: 0.00 | G24: 0.00 | H24: 0.00 | I24: 0.00 | J24: 1,700,000.00 | K24: 0.00 | L24: 1,700,000.00 | M24: 0.00 | N24: 0.00 | O24: 0.00 | P24: 0.00 | Q24: 0.00
A25: 208 | B25: 10 | C25: 5 | D25: 社会福利事业单位 | E25: 273,707.14 | F25: 273,707.14 | G25: 247,707.14 | H25: 26,000.00 | I25: 0.00 | J25: 0.00 | K25: 0.00 | L25: 0.00 | M25: 0.00 | N25: 0.00 | O25: 0.00 | P25: 0.00 | Q25: 0.00

Sheet 专项
A2: 专项资金预算汇总表
H3: 单位：元
A4: 项目名称 | B4: 总计 | C4: 一般预算拨款 | E4: 纳入专户管理的非税收入拨款 | F4: 政府性基金拨款 | G4: 上级补助收入 | H4: 其他收入
C5: 经费拨款 | D5: 纳入预算管理的非税收入拨款
B6: =SUM(B7:B13) -> 8860000.00 | C6: 8860000.00 | D6: 0.00 | E6: 0.00 | F6: 0.00 | G6: 0.00 | H6: 0.00
A7: 基本养老服务补贴 | B7: 200000.00 | C7: 200000.00 | D7: 0.00 | E7: 0.00 | F7: 0.00 | G7: 0.00 | H7: 0.00
A8: 农村五保供养 | B8: 1000000.00 | C8: 1000000.00 | D8: 0.00 | E8: 0.00 | F8: 0.00 | G8: 0.00 | H8: 0.00
A9: 一次性经济补助及待安置期间生活费 | B9: 1240000.00 | C9: 1240000.00 | D9: 0.00 | E9: 0.00 | F9: 0.00 | G9: 0.00 | H9: 0.00
A10: 管理业务经费 | B10: 2320000.00 | C10: 2320000.00 | D10: 0.00 | E10: 0.00 | F10: 0.00 | G10: 0.00 | H10: 0.00
A11: 义务兵优待金 | B11: 1700000.00 | C11: 1700000.00 | D11: 0.00 | E11: 0.00 | F11: 0.00 | G11: 0.00 | H11: 0.00
A12: 精简退职生活补助 | B12: 400000.00 | C12: 400000.00 | D12: 0.00 | E12: 0.00 | F12: 0.00 | G12: 0.00 | H12: 0.00
A13: 低保配套 | B13: 2000000.00 | C13: 2000000.00 | D13: 0.00 | E13: 0.00 | F13: 0.00 | G13: 0.00 | H13: 0.00

Sheet 三公
A1: 一般公共预算“三公”经费预算表
A2: 单位：临湘市民政局 | G2: 单位：元
A3: 单位名称 | B3: 三公经费预算数(一般公共预算拨款)
B4: 小计 | C4: 公务接待费 | D4: 公务用车购置及运行费 | E4: 其中： | G4: 因公出国(境)费用
E5: 公务用车购置费 | F5: 公务用车运行维护费
A6: 合计 | B6: =SUM(B7:B10) -> 494,000.00 | C6: 494,000.00 | D6: 0.00 | E6: 0.00 | F6: 0.00 | G6: 0.00
A7: 临湘市民政局 | B7: 410,000.00 | C7: 410,000.00 | D7: 0.00 | E7: 0.00 | F7: 0.00 | G7: 0.00
A8: 临湘市光荣院 | B8: 32,000.00 | C8: 32,000.00 | D8: 0.00 | E8: 0.00 | F8: 0.00 | G8: 0.00
A9: 临湘市救助管理站 | B9: 32,000.00 | C9: 32,000.00 | D9: 0.00 | E9: 0.00 | F9: 0.00 | G9: 0.00
A10: 临湘市福利院 | B10: 20,000.00 | C10: 20,000.00 | D10: 0.00 | E10: 0.00 | F10: 0.00 | G10: 0.00

Sheet 绩效申报
A1: 项目绩效目标申报表
A2: 单位：临湘市民政局 | K2: 单位：万元
A3: 单位编码 | B3: 单位名称 | C3: 申报金额 | D3: 项目实施产出成果目标 | H3: 项目绩效目标
D4: 定量目标（成果目标） | G4: 定性目标（成果目标） | H4: 定量目标（绩效目标） | K4: 定性目标（绩效目标）
D5: 目标类型 | E5: 目标（指标）内容 | F5: 目标（指标）值 | H5: 效益类型 | I5: 目标（指标）内容B | J5: 目标（指标）值B
A6: ** | B6: ** | C6: 1 | D6: 2 | E6: 3 | F6: 4 | G6: 5 | H6: 6 | I6: 7 | J6: 8 | K6: 9
B7: 合计 | C7: =SUM(C8:C13) -> 852.00
A8: 503001 | B8: 临湘市民政局 | C8: 40.00 | D8: 完成全市符合条件精简退职对象的生活补助定期定量发放，核对自然减员，申报新增对象 | K8: 完成全市符合条件精简退职对象的生活补助定期定量发放，核对自然减员，申报新增对象
A9: 503001 | B9: 临湘市民政局 | C9: 100.00 | D9: 农村五保供养本级财政配套支出，用于发放农村五保对象的基本生活费 | G9: 农村五保供养本级财政配套支出，保障及时、准确发放农村五保对象的基本生活费 | K9: 农村五保供养本级财政配套支出，保障及时、准确发放农村五保对象的基本生活费
A10: 503001 | B10: 临湘市民政局 | C10: 170.00 | D10: 用于发放上一年度入伍义务兵家属优待金 | G10: 及时、准确发放上一年度入伍义务兵家属优待金 | K10: 及时、准确发放上一年度入伍义务兵家属优待金
A11: 503001 | B11: 临湘市民政局 | C11: 150.00
A12: 503001 | B12: 临湘市民政局 | C12: 262.00 | D12: 开展优抚伤残、三属、红失对象的调查、核实工作；做好军休人员安置管理工作；做好慈善募捐工作，做好社会救助阳光行动及城乡低保、五保核查工作；做好婚姻登记工作；做好社会事务及堪界工作；做好葬殡执法工作；做好老龄事务工作；做好救灾工作；做好民政局机关日常运转工作。 | G12: 开展优抚伤残、三属、红失对象的调查、核实工作；做好军休人员安置管理工作；做好慈善募捐工作，做好社会救助阳光行动及城乡低保、五保核查工作；做好婚姻登记工作；做好社会事务及堪界工作；做好葬殡执法工作；做好老龄事务工作；做好救灾工作；做好民政局机关日常运转工作。 | H12: 开展优抚伤残、三属、红失对象的调查、核实工作；做好军休人员安置管理工作；做好慈善募捐工作，做好社会救助阳光行动及城乡低保、五保核查工作；做好婚姻登记工作；做好社会事务及堪界工作；做好葬殡执法工作；做好老龄事务工作；做好救灾工作；做好民政局机关日常运转工作。 | K12: 开展优抚伤残、三属、红失对象的调查、核实工作；做好军休人员安置管理工作；做好慈善募捐工作，做好社会救助阳光行动及城乡低保、五保核查工作；做好婚姻登记工作；做好社会事务及堪界工作；做好葬殡执法工作；做好老龄事务工作；做好救灾工作；做好民政局机关日常运转工作。
A13: 503001 | B13: 临湘市民政局 | C13: 130.00 | D13: 发放义务兵一次性经济补助及待安置期间生活费 | G13: 及时、准确发放义务兵一次性经济补助及待安置期间生活费 | K13: 及时、准确发放义务兵一次性经济补助及待安置期间生活费

Sheet 绩效目标整体申报
A1: 整体支出绩效目标申报表
A2: 单位：临湘市民政局 | X2: 单位：万元
A3: 单位编码 | B3: 单位名称 | C3: 预算绩效管理联络员 | D3: 联系电话 | E3: 人员编制数 | F3: 实有人数 | G3: 单位职能 | H3: 单位年度收入预算（万元） | M3: 单位年度支出预算（万元） | T3: 部门整体支出年度绩效目标 | U3: 部门整体支出年度绩效指标 | W3: 其他说明的问题 | X3: 财政部门审核意见
H4: 收入合计 | I4: 公共财政拨款 | J4: 政府性基金拨款 | K4: 非税收入拨款 | L4: 其他拨款 | M4: 支出合计 | N4: 基本支出 | O4: 项目支出 | P4: 其中三公经费预算（万元） | Q4: 公务用车运行和购置费 | R4: 公务接待费 | S4: 因公出国（境）费 | U4: 数量指标 | V4: 效益指标
A5: ** | B5: ** | C5: ** | D5: ** | E5: 1 | F5: 2 | G5: 3 | H5: 4 | I5: 5 | J5: 6 | K5: 7 | L5: 8 | M5: 9 | N5: 10 | O5: 11 | P5: 12 | Q5: 13 | R5: 14 | S5: 15 | T5: 16 | U5: 17 | V5: 18 | W5: 19 | X5: 20
B6: 合计 | E6: =SUM(E7:E8) -> 78 | F6: =SUM(F7:F8) -> 78 | H6: =SUM(H7:H8) -> 0.00 | I6: 0.00 | J6: 0.00 | K6: 0.00 | L6: 0.00 | M6: 4,650,963.20 | N6: 4,650,000.00 | O6: 963.20 | P6: 38.00 | Q6: 0.00 | R6: 38.00 | S6: 0.00
A7: 503001 | B7: 临湘市民政局 | C7: 汪卫红 | D7: 3751689 | E7: 74 | F7: 74 | G7: 民政局担负着社会救助、救灾救济、优抚安置、社会福利事业发展、基层政权建设、社会组织管理、殡葬改革、婚姻登记、福利彩票发行等民生保障和社会事务管理工作，服务城乡低保、城乡特困供养、重点优抚、精简退职、投诚起义、孤儿等主要民政对象35000多人。 | H7: 0.00 | I7: 0.00 | J7: 0.00 | K7: 0.00 | L7: 0.00 | M7: 4,650,963.20 | N7: 4,650,000.00 | O7: 963.20 | P7: 38.00 | Q7: 0.00 | R7: 38.00 | S7: 0.00 | T7: 完成年度社会救助、救灾救济、优抚安置、社会福利事业发展、基层政权建设、社会组织管理、殡葬改革、婚姻登记、福利彩票发行等民生保障和社会事务管理工作，服务城乡低保、城乡特困供养、重点优抚、精简退职、投诚起义、孤儿等主要民政对象35000多人。全年共发放优抚、困难群众基本生活救助、救灾救济、福彩公益金等各项民政专项资金15000万元 | U7: 服务城乡低保、城乡特困供养、重点优抚、精简退职、投诚起义、孤儿等主要民政对象35000多人。全年共发放优抚、困难群众基本生活救助、救灾救济、福彩公益金等各项民政专项资金15000万元 | V7: 完成年度社会救助、救灾救济、优抚安置、社会福利事业发展、基层政权建设、社会组织管理、殡葬改革、婚姻登记、福利彩票发行等民生保障和社会事务管理工作。
A8: 503004 | B8: 临湘市福利院 | C8: 李满秀 | D8: 3731138 | E8: 4 | F8: 4 | G8: 社会弃婴、孤儿收养及抚养工作 | H8: 0.00 | I8: 0.00 | J8: 0.00 | K8: 0.00 | L8: 0.00 | M8: 0.00 | N8: 0.00 | O8: 0.00 | P8: 0.00 | Q8: 0.00 | R8: 0.00 | S8: 0.00
